bitfinex/quotes_SOLUSD_20250724
["timestamp","ask_amount","ask_price","bid_price","bid_amount"]
[1753344545681,10.15581235,184.8,184.79,0.06]
[1753344546054,10.82581235,184.8,184.79,0.06]
[1753344546250,6.08125541,184.8,184.79,0.06]
[1753344546455,10.82581235,184.8,184.79,0.06]
[1753344546670,50.35395087,184.8,184.71,0.06]
[1753344546867,4.74455694,184.76,184.71,0.06]
[1753344547171,7.74337262,184.76,184.71,0.06]
[1753344547386,7.74337262,184.74,184.71,0.06]
[1753344547555,7.74337262,184.75,184.71,0.06]
[1753344547907,2.2571,184.78,184.71,0.06]
[1753344548051,7.74337262,184.78,184.72,8.43337262]
[1753344549368,13.15550662,184.77,184.72,0.69]
[1753344549571,7.74337262,184.77,184.72,6.10357948]
[1753344550156,7.74337262,184.77,184.72,0.69]
[1753344550366,7.74337262,184.75,184.71,0.06]
[1753344550552,7.74337262,184.76,184.71,0.06]
[1753344550754,7.74337262,184.76,184.71,0.75]
[1753344551081,7.74337262,184.75,184.71,0.75]
[1753344551573,7.74337262,184.74,184.71,0.06]
[1753344551994,0.67,184.75,184.71,0.06]
[1753344552682,7.74337262,184.73,184.71,0.06]
[1753344552982,7.74337262,184.72,184.71,0.06]
[1753344553186,8.41337262,184.72,184.71,0.06]
[1753344553568,7.74337262,184.74,184.71,0.06]
[1753344553782,0.67,184.79,184.71,8.48337262]
[1753344553983,0.67,184.79,184.72,8.42337262]
[1753344554191,7.74337262,184.77,184.72,8.42337262]
[1753344554864,7.74337262,184.8,184.73,0.68]
[1753344555185,7.74337262,184.79,184.74,7.74337262]
[1753344555364,7.74337262,184.79,184.74,8.42337262]
[1753344555560,7.74337262,184.79,184.74,13.83635121]
[1753344555760,8.41337262,184.8,184.75,0.68]
[1753344555991,7.74337262,184.81,184.76,0.68]
[1753344556171,0.67,184.82,184.77,8.42337262]
[1753344556487,47.26337262,184.83,184.78,8.42337262]
[1753344556688,8.41337262,184.82,184.74,7.01677859]
[1753344556990,7.74337262,184.79,184.74,5.41297859]
[1753344557192,7.74337262,184.81,184.76,7.74337262]
[1753344557491,7.74337262,184.83,184.77,8.42337262]
[1753344557788,7.74337262,184.83,184.77,13.83533813]
[1753344557971,7.74337262,184.81,184.76,13.15570858]
[1753344558286,0.67,184.8,184.76,7.74337262]
[1753344558493,7.74337262,184.81,184.76,7.74337262]
[1753344558785,7.74337262,184.81,184.77,0.68]
[1753344559476,0.67,184.8,184.76,7.74337262]
[1753344559879,7.74337262,184.79,184.74,7.74337262]
[1753344560080,0.67,184.8,184.74,8.42337262]
[1753344560283,8.41337262,184.8,184.75,7.74337262]
[1753344560474,8.41337262,184.82,184.76,8.42337262]
[1753344560676,5.41008439,184.84,184.77,8.42337262]
[1753344560886,33.74337262,184.85,184.79,7.74337262]
[1753344561095,8.90060914,184.86,184.83,7.74337262]
[1753344561096,2.82110334,184.86,184.83,7.74337262]
[1753344561270,7.74337262,184.88,184.8,2.2598]
[1753344561592,8.41337262,184.87,184.81,7.74337262]
[1753344561888,3.49060055,184.91,184.85,7.74337262]
[1753344562093,0.67,184.91,184.85,7.74337262]
[1753344562270,0.67,184.91,184.84,0.68]
[1753344562271,8.41337262,184.91,184.86,7.74337262]
[1753344562586,7.74337262,184.91,184.85,7.74337262]
[1753344562788,7.74337262,184.88,184.82,7.74337262]
[1753344563091,7.74337262,184.87,184.81,8.42337262]
[1753344563789,8.41337262,184.86,184.81,13.1542927]
[1753344563978,8.41337262,184.86,184.81,6.09092008]
[1753344564167,7.74337262,184.86,184.81,8.42337262]
[1753344564568,0.17,184.88,184.81,8.42337262]
[1753344564887,7.74337262,184.87,184.82,7.74337262]
[1753344565086,7.74337262,184.87,184.82,8.42337262]
[1753344565291,7.74337262,184.9,184.85,7.74337262]
[1753344565491,10.70277767,184.94,184.87,7.74337262]
[1753344565789,26.0,184.94,184.89,7.74337262]
[1753344565983,26.0,184.94,184.89,13.15193972]
[1753344566293,0.03,184.95,184.91,7.74337262]
[1753344566468,0.03,184.95,184.91,0.68]
[1753344566671,0.03,184.95,184.94,7.74337262]
[1753344566866,0.03,184.95,184.92,1.22077438]
[1753344567093,0.03,184.95,184.92,0.68]
[1753344567281,0.03,184.95,184.91,7.74337262]
[1753344568186,7.74337262,184.93,184.86,0.68]
[1753344568488,7.74337262,184.93,184.88,7.74337262]
[1753344568690,0.67,184.94,184.88,0.68]
[1753344568875,7.74337262,184.94,184.89,7.74337262]
[1753344569069,0.03,184.95,184.9,8.42337262]
[1753344569070,7.77337262,184.95,184.9,8.42337262]
[1753344569291,8.44337262,184.95,184.9,8.42337262]
[1753344569483,8.44337262,184.95,184.9,0.68]
[1753344569888,7.74337262,184.93,184.88,7.74337262]
[1753344570187,8.41337262,184.93,184.87,7.74337262]
[1753344570489,7.74337262,184.92,184.86,8.42337262]
[1753344570883,7.74337262,184.92,184.87,7.74337262]
[1753344571188,0.67,184.93,184.87,8.42337262]
[1753344571391,8.41337262,184.93,184.88,0.68]
[1753344571581,0.67,184.93,184.88,0.68]
[1753344571776,13.15053169,184.94,184.89,7.74337262]
[1753344571982,39.18030823,184.95,184.89,7.74337262]
[1753344572177,33.77337262,184.95,184.9,8.42337262]
[1753344572400,0.03,184.95,184.91,7.74337262]
[1753344572578,0.03,184.95,184.92,0.68]
[1753344572782,0.03,184.95,184.94,7.74337262]
[1753344573192,0.03,184.95,184.94,8.42337262]
[1753344574094,0.03,184.95,184.94,13.83053169]
[1753344574305,0.03,184.95,184.91,8.28417625]
[1753344574306,0.03,184.95,184.92,5.40774388]
[1753344574603,0.03,184.95,184.91,0.68]
[1753344574778,0.03,184.95,184.92,7.74337262]
[1753344575177,0.03,184.95,184.88,5.40891389]
[1753344575380,0.03,184.95,184.91,8.42337262]
[1753344575595,0.03,184.95,184.92,7.74337262]
[1753344576394,0.03,184.95,184.91,8.42337262]
[1753344576587,8.44337262,184.95,184.9,7.74337262]
[1753344577281,8.44337262,184.95,184.89,7.74337262]
[1753344577807,7.74337262,184.93,184.88,7.74337262]
[1753344577979,7.74337262,184.91,184.86,8.42337262]
[1753344578183,7.74337262,184.91,184.84,39.56]
[1753344578399,7.74337262,184.91,184.86,7.74337262]
[1753344578608,8.41337262,184.91,184.86,7.74337262]
[1753344579309,5.4368809,184.95,184.9,7.74337262]
[1753344579512,5.4368809,184.95,184.91,0.68]
[1753344580017,0.03,184.95,184.92,8.42337262]
[1753344580180,0.03,184.95,184.93,0.68]
[1753344580376,0.03,184.95,184.92,7.74337262]
[1753344580603,0.03,184.95,184.93,0.68]
[1753344580810,0.03,184.95,184.91,7.74337262]
[1753344581115,4.96663113,184.96,184.91,7.74337262]
[1753344581282,4.96663113,184.96,184.91,8.42337262]
[1753344581601,4.96663113,184.96,184.92,7.74337262]
[1753344581794,0.67,184.95,184.91,7.74337262]
[1753344581997,7.74337262,184.95,184.9,7.74337262]
[1753344582199,12.71000375,184.96,184.91,7.74337262]
[1753344582609,7.74337262,184.95,184.89,40.24]
[1753344582795,12.71000375,184.96,184.91,7.74337262]
[1753344583111,5.62663113,184.96,184.91,7.74337262]
[1753344583325,13.37000375,184.96,184.91,7.74337262]
[1753344584519,4.96663113,184.96,184.91,7.74337262]
[1753344584696,26.03,184.99,184.95,7.74337262]
[1753344585192,0.03,184.99,184.96,0.69]
[1753344585392,0.03,184.99,184.98,7.74337262]
[1753344585698,0.03,184.99,184.98,8.43337262]
[1753344586510,0.03,184.99,184.98,0.69]
[1753344586687,0.03,184.99,184.98,7.74337262]
[1753344586887,0.03,184.99,184.95,39.52]
[1753344586888,0.69,184.99,184.95,39.52]
[1753344587213,0.03,184.99,184.95,39.52]
[1753344587519,7.77337262,184.99,184.94,7.74337262]
[1753344587806,0.03,184.99,184.95,8.43337262]
[1753344587980,0.03,184.99,184.96,7.74337262]
[1753344588184,0.03,184.99,184.96,8.43337262]
[1753344588489,0.03,184.99,184.97,0.69]
[1753344588993,0.03,184.99,184.95,5.40679997]
[1753344589200,0.03,184.99,184.96,0.69]
[1753344589594,0.03,184.99,184.93,39.5]
[1753344589595,0.03,184.99,184.93,44.90737295]
[1753344589796,0.03,184.99,184.98,7.74337262]
[1753344590306,0.03,184.99,184.98,8.43337262]
[1753344590509,0.03,184.99,184.98,48.73337262]
[1753344591305,0.03,184.99,184.98,54.13936245]
[1753344592412,0.03,184.99,184.98,40.99]
[1753344592615,0.03,184.99,184.98,48.73337262]
[1753344592991,0.03,184.99,184.97,40.3]
[1753344593204,0.03,184.99,184.98,7.74337262]
[1753344594012,0.03,184.99,184.95,0.69]
[1753344594310,0.03,184.99,184.97,7.74337262]
[1753344594507,0.03,184.99,184.97,8.43337262]
[1753344594711,0.03,184.99,184.98,8.43337262]
[1753344595596,0.03,184.99,184.98,13.83936245]
[1753344596808,0.03,184.99,184.98,8.43337262]
[1753344597018,0.03,184.99,184.95,40.97]
[1753344597234,0.03,184.99,184.98,7.74337262]
[1753344597715,0.03,184.99,184.98,8.43337262]
[1753344598697,0.03,184.99,184.96,0.69]
[1753344598896,0.03,184.99,184.98,7.74337262]
[1753344600124,0.69,184.99,184.96,0.06]
[1753344600707,0.66,184.98,184.96,0.06]
[1753344601721,7.77337262,184.99,184.96,0.06]
[1753344601722,5.43592066,184.99,184.96,0.06]
[1753344602104,6.09592066,184.99,184.96,0.06]
[1753344602535,5.43592066,184.99,184.96,0.06]
[1753344602834,5.43592066,184.99,184.96,7.80337262]
[1753344603803,5.43592066,184.99,184.96,0.06]
[1753344604111,7.74337262,184.97,184.96,0.06]
[1753344604335,7.1344,184.98,184.96,0.06]
[1753344604629,7.74337262,184.97,184.96,0.06]
[1753344604939,8.40337262,184.97,184.96,0.06]
[1753344605626,25.18805659,184.97,184.96,1e-08]
[1753344605931,26.0,184.93,184.88,0.06]
[1753344606134,7.74337262,184.89,184.88,0.06]
[1753344606435,7.74337262,184.9,184.88,0.06]
[1753344606611,0.66,184.92,184.88,0.06]
[1753344606932,7.74337262,184.89,184.88,0.06]
[1753344607312,8.40337262,184.89,184.88,0.06]
[1753344607713,6.06862134,184.89,184.88,0.06]
[1753344607908,13.81199396,184.89,184.88,0.06]
[1753344608201,30.59667793,184.89,184.88,0.06]
[1753344608405,13.81199396,184.89,184.88,0.06]
[1753344609010,6.06862134,184.89,184.88,0.06]
[1753344609630,13.81199396,184.89,184.88,0.06]
[1753344609832,5.56862134,184.89,184.88,0.06]
[1753344610040,5.40862134,184.89,184.88,0.06]
[1753344610531,13.15199396,184.89,184.88,0.06]
[1753344610833,5.40862134,184.89,184.88,0.06]
[1753344611128,13.15199396,184.89,184.88,0.06]
[1753344612034,34.36257276,184.89,184.88,0.06]
[1753344612533,16.78468397,184.88,184.82,0.06]
[1753344612830,42.96468397,184.88,184.82,0.06]
[1753344613034,7.74337262,184.83,184.82,0.06]
[1753344613222,16.78468397,184.83,184.82,0.06]
[1753344613406,24.70805659,184.83,184.82,0.06]
[1753344613829,30.11843369,184.83,184.82,0.06]
[1753344614526,22.19506107,184.83,184.82,0.06]
[1753344614725,29.93843369,184.83,184.82,0.06]
[1753344614911,22.19506107,184.83,184.82,0.06]
[1753344615528,22.37506107,184.83,184.82,0.06]
[1753344615732,30.11843369,184.83,184.82,0.06]
[1753344615930,29.93843369,184.83,184.82,0.06]
[1753344616834,5.4103771,184.83,184.82,0.06]
[1753344617337,13.15374972,184.83,184.82,0.06]
[1753344618525,7.74337262,184.83,184.82,0.06]
[1753344619032,13.15345701,184.84,184.82,0.06]
[1753344619215,13.15323801,184.85,184.82,0.06]
[1753344619930,7.74337262,184.84,184.82,0.06]
[1753344620324,5.4103771,184.83,184.82,0.06]
[1753344620919,30.11843369,184.83,184.82,0.06]
[1753344621520,13.15374972,184.83,184.82,0.06]
[1753344621823,5.4103771,184.83,184.82,0.06]
[1753344623123,7.74337262,184.84,184.82,0.06]
[1753344623423,8.32337262,184.84,184.82,0.06]
[1753344624731,5.4103771,184.83,184.82,0.06]
[1753344625127,13.15374972,184.83,184.82,0.06]
[1753344625532,13.73374972,184.83,184.82,0.06]
[1753344625830,13.15374972,184.83,184.82,0.06]
[1753344626633,5.4103771,184.83,184.82,0.06]
[1753344627346,5.41013763,184.84,184.82,5.49614342]
[1753344627533,5.4097545,184.86,184.83,5.43614342]
[1753344628134,5.4097545,184.86,184.83,0.69]
[1753344628319,5.4097545,184.86,184.82,4.80614342]
[1753344628525,5.4097545,184.86,184.82,5.49614342]
[1753344629636,5.40920646,184.87,184.83,5.43614342]
[1753344629942,0.03,184.88,184.85,4.74614342]
[1753344630159,5.4389799,184.88,184.85,4.74614342]
[1753344630346,5.4389799,184.88,184.85,0.69]
[1753344631131,6.0189799,184.88,184.83,4.74614342]
[1753344631330,6.0189799,184.88,184.83,5.43614342]
[1753344631532,6.0189799,184.88,184.82,0.06]
[1753344631533,5.4389799,184.88,184.84,5.43614342]
[1753344632526,5.4389799,184.88,184.87,4.74614342]
[1753344632527,0.03,184.88,184.87,4.74614342]
[1753344632732,0.03,184.96,184.88,1.6021]
[1753344632959,0.03,184.96,184.95,4.74614342]
[1753344633328,0.03,184.96,184.95,5.43614342]
[1753344633655,0.03,184.96,184.91,5.43614342]
[1753344634154,0.61,184.95,184.89,0.69]
[1753344634356,16.78468397,184.94,184.88,4.74614342]
[1753344634659,26.0,184.95,184.92,4.74614342]
[1753344635041,26.0,184.95,184.91,4.74614342]
[1753344635256,26.0,184.95,184.91,5.43614342]
[1753344635639,5.43682026,184.96,184.92,4.74614342]
[1753344635836,10.18296368,184.96,184.91,5.43614342]
[1753344636159,0.61,184.95,184.9,4.74614342]
[1753344636366,5.35614342,184.95,184.9,5.43614342]
[1753344636574,4.74614342,184.95,184.9,5.43614342]
[1753344637133,4.74614342,184.95,184.84,40.1]
[1753344637134,5.35614342,184.94,184.88,4.74614342]
[1753344637537,5.40745146,184.93,184.89,4.74614342]
[1753344638374,5.40745146,184.93,184.89,5.43614342]
[1753344638760,5.40745146,184.93,184.87,0.69]
[1753344638951,5.40745146,184.93,184.89,4.74614342]
[1753344639263,5.40745146,184.93,184.89,5.43614342]
[1753344639588,5.40745146,184.93,184.89,4.74614342]
[1753344639741,5.40745146,184.93,184.87,0.69]
[1753344639742,6.01745146,184.93,184.87,0.69]
[1753344640046,10.76359488,184.93,184.88,4.74614342]
[1753344640246,10.76359488,184.93,184.88,5.43614342]
[1753344640845,5.40745146,184.93,184.89,4.74614342]
[1753344641032,5.40745146,184.93,184.88,0.69]
[1753344641240,10.76359488,184.93,184.88,5.43614342]
[1753344641659,10.76359488,184.93,184.88,0.69]
[1753344641869,10.76359488,184.93,184.88,5.43614342]
[1753344643241,6.01745146,184.93,184.88,0.69]
[1753344643565,6.01745146,184.93,184.85,0.06]
[1753344643566,4.74614342,184.91,184.86,4.74614342]
[1753344643860,0.61,184.91,184.86,4.74614342]
[1753344644161,58.90608013,184.93,184.87,4.74614342]
[1753344644360,16.78468397,184.92,184.88,4.74614342]
[1753344644562,0.61,184.91,184.86,4.74614342]
[1753344644862,0.61,184.9,184.86,4.74614342]
[1753344645162,5.35614342,184.91,184.86,4.74614342]
[1753344645367,5.40832882,184.9,184.86,4.74614342]
[1753344645557,5.40832882,184.9,184.86,5.42614342]
[1753344645756,0.61,184.91,184.86,0.68]
[1753344645963,26.93859513,184.92,184.87,5.42614342]
[1753344646138,26.93859513,184.92,184.87,4.74614342]
[1753344646466,66.01,184.93,184.89,4.74614342]
[1753344646648,66.01,184.93,184.89,5.42614342]
[1753344646848,26.03,184.93,184.89,5.42614342]
[1753344647466,0.03,184.93,184.9,0.68]
[1753344647648,0.03,184.93,184.91,0.68]
[1753344647961,0.03,184.93,184.89,5.42614342]
[1753344648947,0.03,184.93,184.92,4.74614342]
[1753344649369,0.03,184.93,184.92,5.42614342]
[1753344649552,0.03,184.93,184.92,10.8338873]
[1753344653677,1e-08,184.93,184.92,16.1208051]
[1753344653854,0.03,184.96,184.92,16.1208051]
[1753344653855,0.03,184.96,184.92,64.6740214]
[1753344654054,0.03,184.96,184.95,4.74614342]
[1753344654377,0.03,184.96,184.95,49.27228684]
[1753344654577,0.03,184.96,184.95,49.95228684]
[1753344655548,0.03,184.96,184.95,15.57915356]
[1753344655745,0.03,184.96,184.95,55.29915356]
[1753344657648,0.03,184.96,184.95,6.08686672]
[1753344657852,0.03,184.96,184.95,50.51301014]
[1753344658476,0.03,184.96,184.95,55.25915356]
[1753344659071,0.03,184.96,184.95,50.51301014]
[1753344659264,0.03,184.96,184.95,10.83301014]
[1753344659574,0.03,184.96,184.95,50.51301014]
[1753344660359,4.74614342,185.04,184.98,4.74614342]
[1753344660663,4.74614342,185.05,185.0,4.74614342]
[1753344661176,4.74614342,185.04,184.99,4.74614342]
[1753344661373,7.09574938,185.08,184.99,4.74614342]
[1753344661575,4.74614342,185.04,184.99,4.74614342]
[1753344661778,7.09574938,185.08,185.0,4.74614342]
[1753344661959,4.74614342,185.07,185.02,4.74614342]
[1753344662374,30.74614342,185.07,185.02,4.74614342]
[1753344662675,4.74614342,185.06,185.01,4.74614342]
[1753344662975,5.40376435,185.06,185.02,4.74614342]
[1753344663174,10.14990777,185.06,185.01,4.74614342]
[1753344663374,8.22140497,185.08,185.04,4.74614342]
[1753344663749,2.81827303,185.08,185.05,0.68]
[1753344663956,7.8692,185.11,185.07,4.74614342]
[1753344664149,4.74614342,185.09,185.04,4.74614342]
[1753344664463,0.03,185.08,185.05,4.74614342]
[1753344664669,0.03,185.08,185.05,5.42614342]
[1753344664970,0.03,185.08,185.07,4.74614342]
[1753344665555,0.03,185.08,185.07,5.42614342]
[1753344665781,0.03,185.08,185.07,0.68]
[1753344665961,0.03,185.08,185.07,4.74614342]
[1753344667270,0.03,185.08,185.07,0.68]
[1753344667592,0.03,185.08,185.0,39.51320676]
[1753344667593,0.03,185.08,185.02,4.74614342]
[1753344667754,0.03,185.08,185.04,5.42614342]
[1753344667954,0.03,185.08,185.07,4.74614342]
[1753344668178,9.69426029,185.15,185.08,1.5303]
[1753344668362,9.69426029,185.15,185.14,4.74614342]
[1753344668564,9.69426029,185.15,185.14,5.42614342]
[1753344669166,9.69426029,185.15,185.14,10.82746134]
[1753344669462,2.81558416,185.24,185.14,67.39214531]
[1753344669672,0.7,185.25,185.23,4.74614342]
[1753344669868,0.7,185.25,185.22,4.74614342]
[1753344670168,0.7,185.24,185.22,4.74614342]
[1753344670382,0.7,185.24,185.21,4.74614342]
[1753344670551,5.39837528,185.25,185.2,4.74614342]
[1753344670757,0.7,185.23,185.2,4.74614342]
[1753344670978,0.73,185.23,185.2,4.74614342]
[1753344671179,0.7,185.22,185.15,0.54010261]
[1753344671362,0.7,185.22,185.2,4.74614342]
[1753344672585,0.7,185.22,185.15,39.74]
[1753344672586,0.7,185.21,185.15,39.74]
[1753344672878,0.73,185.23,185.16,0.54007344]
[1753344673080,0.73,185.23,185.15,39.74]
[1753344673081,0.73,185.23,185.2,4.74614342]
[1753344673257,0.68,185.23,185.2,4.74614342]
[1753344673661,0.03,185.23,185.21,4.74614342]
[1753344673887,0.03,185.23,185.16,0.54007344]
[1753344674071,0.03,185.23,185.22,4.74614342]
[1753344679780,0.03,185.23,185.19,5.93975786]
[1753344679970,0.03,185.23,185.19,0.53998596]
[1753344680279,0.68,185.23,185.21,4.74614342]
[1753344680480,6.07873746,185.23,185.21,4.74614342]
[1753344680988,0.03,185.23,185.21,4.74614342]
[1753344681169,0.03,185.23,185.17,47.21360563]
[1753344681369,0.03,185.23,185.22,4.74614342]
[1753344682891,0.03,185.23,185.22,9.49228684]
[1753344683092,0.03,185.23,185.22,4.74614342]
[1753344683293,0.03,185.23,185.22,54.47127183]
[1753344683501,0.03,185.23,185.22,49.07228684]
[1753344683696,0.03,185.23,185.22,49.61218533]
[1753344683868,0.03,185.23,185.19,0.53998596]
[1753344684193,0.65,185.22,185.19,0.53998596]
[1753344684493,10.14571145,185.2,185.09,1.5872]
[1753344684705,4.74614342,185.18,185.13,4.74614342]
[1753344684871,4.74614342,185.18,185.09,1.5872]
[1753344685068,5.39956803,185.2,185.15,4.74614342]
[1753344685069,6.04956803,185.2,185.15,4.74614342]
[1753344685380,13.52716662,185.23,185.13,4.74614342]
[1753344685381,4.77614342,185.23,185.13,4.74614342]
[1753344685579,10.14519405,185.22,185.17,4.74614342]
[1753344685778,10.79519405,185.22,185.17,4.74614342]
[1753344686100,10.79519405,185.22,185.18,4.74614342]
[1753344686101,6.04905063,185.22,185.18,4.74614342]
[1753344686411,0.65,185.21,185.14,0.54013179]
[1753344686610,4.74614342,185.2,185.12,39.56]
[1753344686823,0.65,185.21,185.12,39.56]
[1753344686824,4.74614342,185.19,185.13,4.74614342]
[1753344687097,10.79519405,185.22,185.17,4.74614342]
[1753344687304,5.4287771,185.23,185.19,4.74614342]
[1753344687671,5.39614342,185.22,185.14,0.54013179]
[1753344687883,5.39614342,185.22,185.17,4.74614342]
[1753344688087,4.74614342,185.22,185.16,4.74614342]
[1753344688290,0.65,185.21,185.16,4.74614342]
[1753344688485,6.04931702,185.21,185.16,4.74614342]
[1753344688776,6.04931702,185.21,185.17,4.74614342]
[1753344688988,5.39931702,185.21,185.17,4.74614342]
[1753344689186,5.39931702,185.21,185.13,0.60016096]
[1753344689397,4.74614342,185.18,185.13,4.80614342]
[1753344689703,0.03,185.23,185.18,1.5001]
[1753344690007,0.03,185.23,185.22,4.74614342]
[1753344690184,0.03,185.23,185.19,0.53998596]
[1753344690387,0.03,185.23,185.22,4.74614342]
[1753344692101,0.03,185.23,185.22,9.49228684]
[1753344692473,0.03,185.23,185.22,14.89127183]
[1753344692672,0.65,185.35,185.23,7.9777]
[1753344692877,0.65,185.35,185.3,4.74614342]
[1753344693109,10.1408262,185.37,185.32,4.74614342]
[1753344693307,13.73543722,185.37,185.32,7.69075444]
[1753344693599,13.73543722,185.37,185.24,47.75059464]
[1753344693600,0.65,185.36,185.31,7.69075444]
[1753344693808,7.69075444,185.36,185.3,7.69075444]
[1753344693975,0.65,185.35,185.3,7.69075444]
[1753344694182,0.65,185.34,185.31,7.69075444]
[1753344694377,13.73579615,185.36,185.29,5.39671423]
[1753344694684,13.73579615,185.36,185.31,7.69075444]
[1753344694887,0.65,185.35,185.31,7.69075444]
[1753344695505,6.04520625,185.35,185.31,7.69075444]
[1753344696086,8.34075444,185.37,185.32,7.69075444]
[1753344696290,0.65,185.35,185.32,7.69075444]
[1753344697085,0.65,185.34,185.3,7.69075444]
[1753344697281,7.69075444,185.35,185.3,7.69075444]
[1753344697504,5.39530642,185.35,185.3,7.69075444]
[1753344697687,0.65,185.34,185.3,7.69075444]
[1753344698022,0.65,185.33,185.3,7.69075444]
[1753344698305,13.73606086,185.35,185.3,7.69075444]
[1753344698679,0.65,185.34,185.3,7.69075444]
[1753344699687,0.65,185.34,185.31,7.69075444]
[1753344700102,5.39530642,185.35,185.31,7.69075444]
[1753344700287,6.04530642,185.35,185.31,7.69075444]
[1753344700489,5.39530642,185.35,185.31,7.69075444]
[1753344700700,6.04552937,185.34,185.31,7.69075444]
[1753344701301,0.65,185.34,185.31,7.69075444]
[1753344701508,6.04563828,185.34,185.3,7.69075444]
[1753344702028,6.04563828,185.34,185.27,5.39730163]
[1753344702191,6.04563828,185.34,185.3,7.69075444]
[1753344702594,0.65,185.33,185.3,7.69075444]
[1753344703502,13.08639272,185.34,185.27,5.39746717]
[1753344703809,0.7,185.33,185.3,7.69075444]
[1753344704002,5.39563828,185.34,185.27,5.39746717]
[1753344704306,5.39563828,185.34,185.3,7.69075444]
[1753344704490,5.39519827,185.35,185.3,7.69075444]
[1753344704689,0.7,185.34,185.31,7.69075444]
[1753344705004,7.69075444,185.36,185.28,5.93686792]
[1753344705212,0.7,185.33,185.31,7.69075444]
[1753344705533,5.39432516,185.38,185.31,7.69075444]
[1753344705534,0.7,185.35,185.31,7.69075444]
[1753344706004,0.7,185.35,185.29,5.39667607]
[1753344706507,0.7,185.35,185.32,7.69075444]
[1753344706884,8.30667767,185.42,185.34,7.69075444]
[1753344707083,8.30667767,185.42,185.37,7.69075444]
[1753344707084,0.7,185.41,185.37,7.69075444]
[1753344707284,0.7,185.4,185.37,7.69075444]
[1753344707484,0.7,185.4,185.36,7.69075444]
[1753344708205,0.1,185.42,185.39,7.69075444]
[1753344708408,0.1,185.42,185.34,5.93482083]
[1753344708606,0.7,185.41,185.37,7.69075444]
[1753344708818,0.7,185.4,185.37,7.69075444]
[1753344708982,0.7,185.39,185.37,7.69075444]
[1753344710301,0.03,185.39,185.38,7.69075444]
[1753344712113,0.03,185.39,185.38,13.0850796]
[1753344713212,0.03,185.39,185.38,5.39432516]
[1753344713515,0.03,185.39,185.38,13.0850796]
[1753344714015,0.03,185.39,185.36,5.3949072]
[1753344714203,0.03,185.39,185.38,7.69075444]
[1753344714593,0.03,185.39,185.36,5.3949072]
[1753344714798,0.03,185.39,185.38,7.69075444]
[1753344715198,0.03,185.39,185.38,4.71539332]
[1753344716807,0.43,185.44,185.38,4.71539332]
[1753344717320,5.14539332,185.44,185.39,4.71539332]
[1753344717513,6.90165124,185.46,185.39,4.71539332]
[1753344717816,4.71539332,185.44,185.36,0.28]
[1753344718029,4.71539332,185.44,185.39,10.10935484]
[1753344718327,1.5096,185.46,185.39,5.39396152]
[1753344718527,4.71539332,185.44,185.39,5.39396152]
[1753344718828,0.7,185.43,185.39,10.10935484]
[1753344719001,0.7,185.42,185.39,10.10935484]
[1753344719190,0.7,185.42,185.39,5.39396152]
[1753344719392,0.7,185.42,185.39,10.10935484]
[1753344719806,0.7,185.42,185.39,5.39396152]
[1753344720112,0.7,185.42,185.39,10.10935484]
[1753344720616,4.50740701,185.57,185.4,0.28]
[1753344720617,7.18853639,185.5,185.4,0.28]
[1753344720818,17.48468397,185.49,185.41,4.71539332]
[1753344721117,4.71539332,185.45,185.39,35.39396152]
[1753344721418,0.7,185.48,185.39,35.39396152]
[1753344721419,0.7,185.44,185.39,49.41845042]
[1753344721589,5.39113227,185.49,185.39,49.41845042]
[1753344721795,5.39113227,185.49,185.44,4.71539332]
[1753344722101,0.7,185.48,185.43,4.71539332]
[1753344722413,2.81153208,185.52,185.46,4.71539332]
[1753344722608,0.7,185.51,185.44,0.28]
[1753344722804,6.97213264,185.54,185.44,0.28]
[1753344722805,0.7,185.54,185.49,4.71539332]
[1753344723006,0.7,185.54,185.53,4.71539332]
[1753344723413,0.7,185.56,185.49,5.3911262]